[Event "Early-Titled-Tuesday-Blitz-May-07-2024"]
[Site "Chess.com"]
[Date "2024.05.07"]
[Round "9"]
[White "RantomOpening"]
[Black "average_trans"]
[Result "1-0"]
[WhiteElo "2500"]
[BlackElo "2341"]
[TimeControl "180+1"]
[EndTime "9:54:05 PDT"]
[Termination "RantomOpening won on time"]

1. c4 {[%clk 0:02:11.4]} 1... e6 {[%clk 0:02:44.6]} 2. b3 {[%clk 0:02:11]} 2...
d5 {[%clk 0:02:44.5]} 3. e3 {[%clk 0:02:11.5]} 3... c5 {[%clk 0:02:44.1]} 4. Bb2
{[%clk 0:02:10.9]} 4... Nf6 {[%clk 0:02:43]} 5. Nf3 {[%clk 0:02:11.1]} 5... Nc6
{[%clk 0:02:42.1]} 6. g3 {[%clk 0:02:09.6]} 6... Be7 {[%clk 0:02:40.5]} 7. Bg2
{[%clk 0:02:10]} 7... O-O {[%clk 0:02:40.6]} 8. O-O {[%clk 0:02:10.7]} 8... d4
{[%clk 0:02:38.1]} 9. d3 {[%clk 0:02:07.4]} 9... e5 {[%clk 0:02:35.5]} 10. Qe2
{[%clk 0:02:06.2]} 10... Bg4 {[%clk 0:02:32.2]} 11. e4 {[%clk 0:02:05.3]} 11...
Bh5 {[%clk 0:02:15.4]} 12. Nbd2 {[%clk 0:02:03.6]} 12... Ne8 {[%clk 0:02:13]}
13. h3 {[%clk 0:02:00.2]} 13... Bxf3 {[%clk 0:02:07.1]} 14. Nxf3 {[%clk
0:01:59.8]} 14... a5 {[%clk 0:02:06.4]} 15. a4 {[%clk 0:01:57.8]} 15... Bg5
{[%clk 0:01:58.3]} 16. Nxg5 {[%clk 0:01:57.3]} 16... Qxg5 {[%clk 0:01:58.3]} 17.
Ba3 {[%clk 0:01:53.3]} 17... b6 {[%clk 0:01:58]} 18. Bc1 {[%clk 0:01:53.4]}
18... Qg6 {[%clk 0:01:54.5]} 19. f4 {[%clk 0:01:53.3]} 19... Qxg3 {[%clk
0:01:53.6]} 20. f5 {[%clk 0:01:52.8]} 20... Nf6 {[%clk 0:01:41.2]} 21. Bd2
{[%clk 0:01:40.4]} 21... Nb4 {[%clk 0:01:39.2]} 22. Rf3 {[%clk 0:01:39.1]} 22...
Qh4 {[%clk 0:01:38.7]} 23. Be1 {[%clk 0:01:38.7]} 23... Qh6 {[%clk 0:01:33.3]}
24. Bd2 {[%clk 0:01:38.3]} 24... Qh4 {[%clk 0:01:33.5]} 25. Be1 {[%clk
0:01:37.9]} 25... Qh5 {[%clk 0:01:31.8]} 26. Qf2 {[%clk 0:01:20.8]} 26... Nd7
{[%clk 0:01:16.3]} 27. Rg3 {[%clk 0:01:18.8]} 27... Qh6 {[%clk 0:01:13.1]} 28.
Bd2 {[%clk 0:01:18.6]} 28... Qd6 {[%clk 0:01:12.1]} 29. h4 {[%clk 0:01:16.4]}
29... Kh8 {[%clk 0:01:00.9]} 30. h5 {[%clk 0:01:15.1]} 30... h6 {[%clk
0:01:01.2]} 31. Kf1 {[%clk 0:01:13.1]} 31... Nc2 {[%clk 0:00:45.7]} 32. Rc1
{[%clk 0:01:08]} 32... Ne3+ {[%clk 0:00:46.1]} 33. Bxe3 {[%clk 0:01:08.3]} 33...
dxe3 {[%clk 0:00:47]} 34. Qxe3 {[%clk 0:01:07.2]} 34... Nb8 {[%clk 0:00:46.3]}
35. Rf3 {[%clk 0:01:02.4]} 35... f6 {[%clk 0:00:43.7]} 36. Rg3 {[%clk
0:00:59.8]} 36... Nc6 {[%clk 0:00:43.8]} 37. Bf3 {[%clk 0:00:56.2]} 37... Rad8
{[%clk 0:00:37.4]} 38. Bd1 {[%clk 0:00:50.9]} 38... Rd7 {[%clk 0:00:33.7]} 39.
Rc2 {[%clk 0:00:50.2]} 39... Rfd8 {[%clk 0:00:32.3]} 40. Rd2 {[%clk 0:00:50.2]}
40... Nb4 {[%clk 0:00:20.3]} 41. Ke1 {[%clk 0:00:47.2]} 41... Nc6 {[%clk
0:00:19.6]} 42. Kf1 {[%clk 0:00:47.3]} 42... Nd4 {[%clk 0:00:20]} 43. Kg2 {[%clk
0:00:46.2]} 43... Qe7 {[%clk 0:00:20.3]} 44. Kh3 {[%clk 0:00:45.5]} 44... Nc6
{[%clk 0:00:20.4]} 45. Be2 {[%clk 0:00:39.2]} 45... Qd6 {[%clk 0:00:20.8]} 46.
Rd1 {[%clk 0:00:33]} 46... Qd4 {[%clk 0:00:21.1]} 47. Qd2 {[%clk 0:00:28.6]}
47... Qxe4 {[%clk 0:00:17.9]} 48. Rdg1 {[%clk 0:00:25.9]} 48... Qxf5+ {[%clk
0:00:15.9]} 49. Bg4 {[%clk 0:00:26]} 49... Qg5 {[%clk 0:00:16]} 50. Qxg5 {[%clk
0:00:24.1]} 50... hxg5 {[%clk 0:00:16.9]} 51. Bxd7 {[%clk 0:00:24]} 51... Rxd7
{[%clk 0:00:17.8]} 52. Kg4 {[%clk 0:00:24.6]} 52... Nb4 {[%clk 0:00:18]} 53. Kf5
{[%clk 0:00:24.6]} 53... Rxd3 {[%clk 0:00:15]} 54. Rxd3 {[%clk 0:00:23.2]} 54...
Nxd3 {[%clk 0:00:15.6]} 55. h6 {[%clk 0:00:17.6]} 55... Nf4 {[%clk 0:00:12.7]}
56. Rd1 {[%clk 0:00:15.4]} 56... gxh6 {[%clk 0:00:11.1]} 57. Kxf6 {[%clk
0:00:16.3]} 57... e4 {[%clk 0:00:08.2]} 58. Rd8+ {[%clk 0:00:13.2]} 58... Kh7
{[%clk 0:00:08.7]} 59. Re8 {[%clk 0:00:13.6]} 59... Ne2 {[%clk 0:00:02.9]} 60.
Re7+ {[%clk 0:00:12.9]} 60... Kg8 {[%clk 0:00:02.6]} 61. Rxe4 {[%clk 0:00:12.2]}
61... Nf4 {[%clk 0:00:03.1]} 62. Re8+ {[%clk 0:00:10.9]} 62... Kh7 {[%clk
0:00:03.1]} 63. Re7+ {[%clk 0:00:11.3]} 63... Kg8 {[%clk 0:00:03]} 64. Rb7
{[%clk 0:00:10.8]} 64... Nd3 {[%clk 0:00:02.9]} 65. Kg6 {[%clk 0:00:09.5]} 65...
Kf8 {[%clk 0:00:01.5]} 66. Kf6 {[%clk 0:00:07.1]} 66... Ke8 {[%clk 0:00:01.4]}
67. Ke6 {[%clk 0:00:06.5]} 67... Kf8 {[%clk 0:00:01.9]} 68. Rh7 {[%clk
0:00:06.3]} 68... g4 {[%clk 0:00:00.6]} 69. Rxh6 {[%clk 0:00:04.8]} 69... g3
{[%clk 0:00:00.8]} 70. Rh8+ {[%clk 0:00:04.5]} 70... Kg7 {[%clk 0:00:00.5]} 71.
Rh4 {[%clk 0:00:05.1]} 1-0

[Event "Early-Titled-Tuesday-Blitz-May-07-2024"]
[Site "Chess.com"]
[Date "2024.05.07"]
[Round "9"]
[White "praveenb2002"]
[Black "Casablanca"]
[Result "1-0"]
[WhiteElo "2861"]
[BlackElo "2720"]
[TimeControl "180+1"]
[EndTime "9:54:07 PDT"]
[Termination "praveenb2002 won by checkmate"]

1. c4 {[%clk 0:03:00.9]} 1... e5 {[%clk 0:02:59.8]} 2. g3 {[%clk 0:03:00.2]}
2... Nc6 {[%clk 0:03:00.7]} 3. Bg2 {[%clk 0:02:58.4]} 3... Nf6 {[%clk
0:03:01.1]} 4. Nc3 {[%clk 0:02:55.3]} 4... Bc5 {[%clk 0:03:01.1]} 5. e3 {[%clk
0:02:54]} 5... O-O {[%clk 0:03:01.1]} 6. Nge2 {[%clk 0:02:54]} 6... Re8 {[%clk
0:03:01.6]} 7. O-O {[%clk 0:02:51.1]} 7... a6 {[%clk 0:03:02.3]} 8. d4 {[%clk
0:02:44.8]} 8... exd4 {[%clk 0:03:03.2]} 9. exd4 {[%clk 0:02:45.3]} 9... Ba7
{[%clk 0:03:03.8]} 10. Bg5 {[%clk 0:02:35.4]} 10... h6 {[%clk 0:03:03.6]} 11.
Bxf6 {[%clk 0:02:35.5]} 11... Qxf6 {[%clk 0:03:04.4]} 12. Nd5 {[%clk 0:02:36.1]}
12... Qd8 {[%clk 0:03:04.8]} 13. Qd3 {[%clk 0:02:30.2]} 13... d6 {[%clk
0:03:03.6]} 14. Ne3 {[%clk 0:02:28.3]} 14... Qf6 {[%clk 0:02:57.3]} 15. Rad1
{[%clk 0:02:26.6]} 15... Bd7 {[%clk 0:02:41.4]} 16. Rfe1 {[%clk 0:02:24.4]}
16... Rab8 {[%clk 0:02:32.6]} 17. h4 {[%clk 0:02:20]} 17... Ne7 {[%clk
0:02:31.5]} 18. Nc3 {[%clk 0:02:18.9]} 18... c6 {[%clk 0:02:15.1]} 19. Ne4
{[%clk 0:01:58.4]} 19... Qg6 {[%clk 0:02:14.9]} 20. h5 {[%clk 0:01:56.1]} 20...
Qxh5 {[%clk 0:02:14.1]} 21. Nxd6 {[%clk 0:01:56.3]} 21... Red8 {[%clk
0:02:05.1]} 22. c5 {[%clk 0:01:47.6]} 22... Be6 {[%clk 0:02:05.1]} 23. a3 {[%clk
0:01:38.3]} 23... Rd7 {[%clk 0:01:41.6]} 24. Nec4 {[%clk 0:01:32.8]} 24... Ng6
{[%clk 0:01:39.3]} 25. Ne5 {[%clk 0:01:18.6]} 25... Nxe5 {[%clk 0:01:39.1]} 26.
Rxe5 {[%clk 0:01:19.5]} 26... g5 {[%clk 0:01:02.1]} 27. Rde1 {[%clk 0:01:14.2]}
27... Rf8 {[%clk 0:00:58.3]} 28. Qe3 {[%clk 0:01:04]} 28... Qg6 {[%clk
0:00:55.1]} 29. Be4 {[%clk 0:00:52.5]} 29... Qf6 {[%clk 0:00:55.2]} 30. Bb1
{[%clk 0:00:50.7]} 30... Bb8 {[%clk 0:00:54.5]} 31. Qe4 {[%clk 0:00:39.6]} 31...
Qg7 {[%clk 0:00:27.6]} 32. Rxe6 {[%clk 0:00:39.5]} 32... fxe6 {[%clk 0:00:26.4]}
33. Qxe6+ {[%clk 0:00:40.2]} 33... Kh8 {[%clk 0:00:25]} 34. Nf5 {[%clk
0:00:40.3]} 34... Qh7 {[%clk 0:00:15.2]} 35. Nh4 {[%clk 0:00:23.6]} 35... Qf7
{[%clk 0:00:13.2]} 36. Ng6+ {[%clk 0:00:13.1]} 36... Kg7 {[%clk 0:00:08.7]} 37.
Nxf8 {[%clk 0:00:13.5]} 37... Kxf8 {[%clk 0:00:08.5]} 38. Qxh6+ {[%clk
0:00:13.8]} 38... Qg7 {[%clk 0:00:09]} 39. Qh5 {[%clk 0:00:08.5]} 39... Re7
{[%clk 0:00:08.3]} 40. Rxe7 {[%clk 0:00:07.7]} 40... Kxe7 {[%clk 0:00:09.2]} 41.
Qe2+ {[%clk 0:00:06.7]} 41... Kd8 {[%clk 0:00:08.9]} 42. Qe4 {[%clk 0:00:06.3]}
42... Bc7 {[%clk 0:00:08.8]} 43. Bd3 {[%clk 0:00:05.2]} 43... Qe7 {[%clk
0:00:06.7]} 44. Qf5 {[%clk 0:00:04.1]} 44... Ke8 {[%clk 0:00:03.5]} 45. Kg2
{[%clk 0:00:04.3]} 45... Bd8 {[%clk 0:00:03]} 46. Qg6+ {[%clk 0:00:04.2]} 46...
Kf8 {[%clk 0:00:02.9]} 47. Be4 {[%clk 0:00:03.8]} 47... Qf6 {[%clk 0:00:02.7]}
48. Qh7 {[%clk 0:00:04.1]} 48... Qg7 {[%clk 0:00:02.9]} 49. Qf5+ {[%clk
0:00:04.4]} 49... Qf6 {[%clk 0:00:03.3]} 50. Qd7 {[%clk 0:00:05.1]} 50... Qe7
{[%clk 0:00:03.8]} 51. Qg4 {[%clk 0:00:05.8]} 51... Qf6 {[%clk 0:00:04.2]} 52.
Qh5 {[%clk 0:00:05.8]} 52... Qg7 {[%clk 0:00:03.1]} 53. Qf3+ {[%clk 0:00:05.1]}
53... Qf6 {[%clk 0:00:03.8]} 54. Qd3 {[%clk 0:00:05]} 54... Qe7 {[%clk
0:00:04.5]} 55. Bf3 {[%clk 0:00:05.4]} 55... Qf6 {[%clk 0:00:05.2]} 56. Qe4
{[%clk 0:00:05.8]} 56... Kg7 {[%clk 0:00:05.6]} 57. Bg4 {[%clk 0:00:05.5]} 57...
Qe7 {[%clk 0:00:06]} 58. Qf3 {[%clk 0:00:05.7]} 58... Qf6 {[%clk 0:00:06.5]} 59.
Bf5 {[%clk 0:00:06.4]} 59... Be7 {[%clk 0:00:06]} 60. Qg4 {[%clk 0:00:06.4]}
60... Kf8 {[%clk 0:00:04.8]} 61. Bd3 {[%clk 0:00:06.5]} 61... Kg7 {[%clk
0:00:05]} 62. Qe4 {[%clk 0:00:07.2]} 62... Kf8 {[%clk 0:00:04.1]} 63. Bc4 {[%clk
0:00:07.6]} 63... Ke8 {[%clk 0:00:04.6]} 64. Qg4 {[%clk 0:00:06.6]} 64... Kd8
{[%clk 0:00:04.9]} 65. Be6 {[%clk 0:00:06]} 65... Bf8 {[%clk 0:00:04]} 66. Bc8
{[%clk 0:00:06.3]} 66... Qe7 {[%clk 0:00:04.6]} 67. Bf5 {[%clk 0:00:06.3]} 67...
Kc7 {[%clk 0:00:04.9]} 68. Qf3 {[%clk 0:00:06.3]} 68... Kb8 {[%clk 0:00:05.4]}
69. Bg4 {[%clk 0:00:06.2]} 69... Ka7 {[%clk 0:00:06.3]} 70. Qf5 {[%clk
0:00:06.5]} 70... Bg7 {[%clk 0:00:06.5]} 71. Qd3 {[%clk 0:00:05.9]} 71... Qf6
{[%clk 0:00:06.6]} 72. d5 {[%clk 0:00:05.7]} 72... cxd5 {[%clk 0:00:06.7]} 73.
Qxd5 {[%clk 0:00:06.2]} 73... Qxb2 {[%clk 0:00:06.9]} 74. Bf3 {[%clk 0:00:06.8]}
74... Bd4 {[%clk 0:00:06.7]} 75. Kh3 {[%clk 0:00:06.2]} 75... Bxf2 {[%clk
0:00:05.5]} 76. c6 {[%clk 0:00:06.7]} 76... Bb6 {[%clk 0:00:03.8]} 77. cxb7
{[%clk 0:00:06]} 77... Bc7 {[%clk 0:00:04.5]} 78. Qc5+ {[%clk 0:00:04.4]} 78...
Qb6 {[%clk 0:00:05]} 79. Qd5 {[%clk 0:00:04]} 79... a5 {[%clk 0:00:02.5]} 80.
b8=Q+ {[%clk 0:00:04.1]} 80... Qxb8 {[%clk 0:00:02.8]} 81. Qc6 {[%clk
0:00:03.8]} 81... Bb6 {[%clk 0:00:02.9]} 82. Qd7+ {[%clk 0:00:04]} 82... Qc7
{[%clk 0:00:03.2]} 83. Qd5 {[%clk 0:00:03.4]} 83... Qb8 {[%clk 0:00:03.4]} 84.
Qf7+ {[%clk 0:00:02.3]} 84... Qc7 {[%clk 0:00:03.9]} 85. Qd5 {[%clk 0:00:03.1]}
85... Qb8 {[%clk 0:00:04.6]} 86. Qc6 {[%clk 0:00:03.6]} 86... Qc7 {[%clk
0:00:05.3]} 87. Qa8# {[%clk 0:00:03.8]} 1-0

[Event "Early-Titled-Tuesday-Blitz-May-07-2024"]
[Site "Chess.com"]
[Date "2024.05.07"]
[Round "9"]
[White "Rhesh29"]
[Black "Journey_to_GrandMaster_YT"]
[Result "1-0"]
[WhiteElo "2409"]
[BlackElo "2519"]
[TimeControl "180+1"]
[EndTime "9:54:29 PDT"]
[Termination "Rhesh29 won by checkmate"]

1. e4 {[%clk 0:03:00.9]} 1... d6 {[%clk 0:03:00.1]} 2. d4 {[%clk 0:02:59.7]}
2... Nf6 {[%clk 0:03:01]} 3. Nc3 {[%clk 0:02:58.7]} 3... e5 {[%clk 0:03:01.9]}
4. dxe5 {[%clk 0:02:58.4]} 4... dxe5 {[%clk 0:03:02.8]} 5. Qxd8+ {[%clk
0:02:58.7]} 5... Kxd8 {[%clk 0:03:03.7]} 6. Bg5 {[%clk 0:02:59]} 6... c6 {[%clk
0:03:03.8]} 7. a3 {[%clk 0:02:56.3]} 7... Nd7 {[%clk 0:03:02.5]} 8. Nf3 {[%clk
0:02:56.4]} 8... Bc5 {[%clk 0:02:58.7]} 9. Bd3 {[%clk 0:02:45.4]} 9... b5 {[%clk
0:02:54.9]} 10. O-O {[%clk 0:02:43.2]} 10... Ke7 {[%clk 0:02:53.5]} 11. Rad1
{[%clk 0:02:30.6]} 11... Bb6 {[%clk 0:02:51.7]} 12. h3 {[%clk 0:02:27]} 12... h6
{[%clk 0:02:48.2]} 13. Bh4 {[%clk 0:02:27]} 13... Bc7 {[%clk 0:02:48.2]} 14. Ne2
{[%clk 0:02:18]} 14... g5 {[%clk 0:02:46.6]} 15. Bg3 {[%clk 0:02:17.9]} 15...
Nh5 {[%clk 0:02:46.8]} 16. Bh2 {[%clk 0:02:17.9]} 16... Nf4 {[%clk 0:02:45.5]}
17. Bxf4 {[%clk 0:02:18.1]} 17... gxf4 {[%clk 0:02:44.1]} 18. Nh4 {[%clk
0:02:18]} 18... Nc5 {[%clk 0:02:40.3]} 19. Nc3 {[%clk 0:02:09]} 19... Rg8 {[%clk
0:02:34.6]} 20. Kh2 {[%clk 0:02:07.3]} 20... a5 {[%clk 0:02:32.7]} 21. Bxb5
{[%clk 0:02:03.1]} 21... Bd7 {[%clk 0:02:12.6]} 22. Bc4 {[%clk 0:02:00.8]} 22...
Rab8 {[%clk 0:02:11.6]} 23. b3 {[%clk 0:01:59.1]} 23... Rg5 {[%clk 0:02:10.2]}
24. Nf3 {[%clk 0:01:58.8]} 24... Rg7 {[%clk 0:02:09.4]} 25. Rg1 {[%clk
0:01:48.5]} 25... Be6 {[%clk 0:01:57.8]} 26. Bxe6 {[%clk 0:01:46.2]} 26... Nxe6
{[%clk 0:01:58.7]} 27. Na4 {[%clk 0:01:44]} 27... Bd6 {[%clk 0:01:54.4]} 28. Rd3
{[%clk 0:01:40.3]} 28... f6 {[%clk 0:01:49.1]} 29. Rgd1 {[%clk 0:01:39.8]} 29...
Bxa3 {[%clk 0:01:48.8]} 30. Rd7+ {[%clk 0:01:39.2]} 30... Ke8 {[%clk 0:01:46.8]}
31. Rxg7 {[%clk 0:01:35.8]} 31... Nxg7 {[%clk 0:01:47.7]} 32. Nh4 {[%clk
0:01:24.8]} 32... Be7 {[%clk 0:01:26.9]} 33. Ng6 {[%clk 0:01:14.7]} 33... Ne6
{[%clk 0:01:23.1]} 34. Rd2 {[%clk 0:00:57.9]} 34... Rd8 {[%clk 0:01:21.4]} 35.
Rxd8+ {[%clk 0:00:50.1]} 35... Bxd8 {[%clk 0:01:21.9]} 36. c3 {[%clk 0:00:46.8]}
36... f5 {[%clk 0:01:17.6]} 37. exf5 {[%clk 0:00:43.7]} 37... Ng7 {[%clk
0:01:18.1]} 38. Nxe5 {[%clk 0:00:43.2]} 38... Nxf5 {[%clk 0:01:13.6]} 39. Nxc6
{[%clk 0:00:42.8]} 39... Bc7 {[%clk 0:01:14.2]} 40. Kg1 {[%clk 0:00:36.4]} 40...
Kd7 {[%clk 0:01:14.3]} 41. Na7 {[%clk 0:00:31.5]} 41... Nd6 {[%clk 0:01:07.6]}
42. Nc5+ {[%clk 0:00:30.7]} 42... Ke7 {[%clk 0:01:07.2]} 43. Nc6+ {[%clk
0:00:30.1]} 43... Kf6 {[%clk 0:01:03.4]} 44. Nd3 {[%clk 0:00:27.4]} 44... Ne4
{[%clk 0:01:01.8]} 45. c4 {[%clk 0:00:23.2]} 45... Nd2 {[%clk 0:01:01.8]} 46.
Nd4 {[%clk 0:00:20.4]} 46... h5 {[%clk 0:00:42.7]} 47. f3 {[%clk 0:00:19.6]}
47... Bb6 {[%clk 0:00:35.5]} 48. c5 {[%clk 0:00:19.5]} 48... Bc7 {[%clk
0:00:35.2]} 49. Kf2 {[%clk 0:00:19.3]} 49... Nb1 {[%clk 0:00:32.5]} 50. Ke2
{[%clk 0:00:18]} 50... Nc3+ {[%clk 0:00:33]} 51. Kd2 {[%clk 0:00:17.8]} 51...
Nd5 {[%clk 0:00:33.2]} 52. Nf2 {[%clk 0:00:15.7]} 52... Ne3 {[%clk 0:00:31.9]}
53. Ne4+ {[%clk 0:00:14.9]} 53... Ke5 {[%clk 0:00:30.8]} 54. Nc6+ {[%clk
0:00:14.6]} 54... Kd5 {[%clk 0:00:30.6]} 55. Ne7+ {[%clk 0:00:14.6]} 55... Ke6
{[%clk 0:00:30.3]} 56. Nc6 {[%clk 0:00:14.4]} 56... Nxg2 {[%clk 0:00:29.8]} 57.
Nd4+ {[%clk 0:00:13]} 57... Kd5 {[%clk 0:00:27.8]} 58. Nb5 {[%clk 0:00:12.4]}
58... Bd8 {[%clk 0:00:27.1]} 59. Nbc3+ {[%clk 0:00:11.3]} 59... Kc6 {[%clk
0:00:25.9]} 60. Kd3 {[%clk 0:00:10.9]} 60... Be7 {[%clk 0:00:19.4]} 61. Kc4
{[%clk 0:00:10.2]} 61... Ne1 {[%clk 0:00:18.6]} 62. Nd5 {[%clk 0:00:08.8]} 62...
Bd8 {[%clk 0:00:16.1]} 63. Nxf4 {[%clk 0:00:08.1]} 63... h4 {[%clk 0:00:14.9]}
64. Ne6 {[%clk 0:00:07.5]} 64... Be7 {[%clk 0:00:14.2]} 65. Nd4+ {[%clk
0:00:07.5]} 65... Kd7 {[%clk 0:00:14]} 66. Kd5 {[%clk 0:00:07.4]} 66... Nd3
{[%clk 0:00:13.2]} 67. c6+ {[%clk 0:00:07.5]} 67... Kc8 {[%clk 0:00:13.5]} 68.
Ke6 {[%clk 0:00:06.8]} 68... Bd8 {[%clk 0:00:13]} 69. Nb5 {[%clk 0:00:05.6]}
69... Nf4+ {[%clk 0:00:12.7]} 70. Kf7 {[%clk 0:00:04.7]} 70... Nxh3 {[%clk
0:00:12.8]} 71. Ned6+ {[%clk 0:00:04.3]} 71... Kb8 {[%clk 0:00:13]} 72. Ke8
{[%clk 0:00:04.6]} 72... Bb6 {[%clk 0:00:13.2]} 73. Kd7 {[%clk 0:00:04.5]} 73...
Ng5 {[%clk 0:00:12.6]} 74. Nc4 {[%clk 0:00:04.3]} 74... Bc7 {[%clk 0:00:04.7]}
75. Nxc7 {[%clk 0:00:03.5]} 75... h3 {[%clk 0:00:04.6]} 76. Na6+ {[%clk
0:00:03.1]} 76... Ka7 {[%clk 0:00:04.2]} 77. c7 {[%clk 0:00:03]} 77... h2 {[%clk
0:00:01.5]} 78. c8=Q {[%clk 0:00:02.8]} 78... h1=Q {[%clk 0:00:02.2]} 79. Qb8+
{[%clk 0:00:02.9]} 79... Kxa6 {[%clk 0:00:01.6]} 80. Qb6# {[%clk 0:00:03]} 1-0

[Event "Early-Titled-Tuesday-Blitz-May-07-2024"]
[Site "Chess.com"]
[Date "2024.05.07"]
[Round "10"]
[White "LeninGuerra"]
[Black "Happy1712Drummer"]
[Result "1-0"]
[WhiteElo "2653"]
[BlackElo "2511"]
[TimeControl "180+1"]
[EndTime "9:58:02 PDT"]
[Termination "LeninGuerra won by resignation"]

1. e4 {[%clk 0:03:00.9]} 1... c5 {[%clk 0:02:57.2]} 2. Nf3 {[%clk 0:03:00.7]}
2... e6 {[%clk 0:02:57.5]} 3. b4 {[%clk 0:02:59.3]} 3... cxb4 {[%clk 0:02:56.2]}
4. a3 {[%clk 0:02:59.7]} 4... d5 {[%clk 0:02:52]} 5. e5 {[%clk 0:02:59.5]} 5...
Nc6 {[%clk 0:02:43]} 6. axb4 {[%clk 0:02:57.3]} 6... Bxb4 {[%clk 0:02:41.3]} 7.
Na3 {[%clk 0:02:57.5]} 7... Nh6 {[%clk 0:02:33.3]} 8. Nb5 {[%clk 0:02:57.2]}
8... O-O {[%clk 0:02:31.5]} 9. c3 {[%clk 0:02:57]} 9... Be7 {[%clk 0:02:30]} 10.
d4 {[%clk 0:02:56.2]} 10... a6 {[%clk 0:02:26.6]} 11. Bxh6 {[%clk 0:02:54.4]}
11... gxh6 {[%clk 0:02:26]} 12. Qd2 {[%clk 0:02:53]} 12... Kg7 {[%clk
0:02:17.1]} 13. h4 {[%clk 0:02:52.6]} 13... Rb8 {[%clk 0:02:13.9]} 14. Na3
{[%clk 0:02:52.7]} 14... b5 {[%clk 0:02:11.7]} 15. Nc2 {[%clk 0:02:51.5]} 15...
b4 {[%clk 0:02:11.1]} 16. Rh3 {[%clk 0:02:50.5]} 16... bxc3 {[%clk 0:01:32.8]}
17. Rg3+ {[%clk 0:02:49.9]} 17... Kh8 {[%clk 0:01:32.2]} 18. Qxh6 {[%clk
0:02:49.4]} 18... Rg8 {[%clk 0:01:32.6]} 19. Bd3 {[%clk 0:02:49.3]} 1-0

[Event "Early-Titled-Tuesday-Blitz-May-07-2024"]
[Site "Chess.com"]
[Date "2024.05.07"]
[Round "10"]
[White "Goffredo_Fofi"]
[Black "NikFil2013"]
[Result "0-1"]
[WhiteElo "2506"]
[BlackElo "2420"]
[TimeControl "180+1"]
[EndTime "9:59:04 PDT"]
[Termination "NikFil2013 won by resignation"]

1. e4 {[%clk 0:03:00.9]} 1... c5 {[%clk 0:02:56.9]} 2. d3 {[%clk 0:03:00.7]}
2... d6 {[%clk 0:02:56.5]} 3. g3 {[%clk 0:03:00.8]} 3... Nc6 {[%clk 0:02:56.3]}
4. Bg2 {[%clk 0:03:01.3]} 4... e6 {[%clk 0:02:56.1]} 5. f4 {[%clk 0:03:00.7]}
5... Nf6 {[%clk 0:02:55.4]} 6. Nf3 {[%clk 0:03:01.3]} 6... Be7 {[%clk 0:02:53]}
7. O-O {[%clk 0:03:01.4]} 7... O-O {[%clk 0:02:51.7]} 8. h3 {[%clk 0:03:01.5]}
8... b6 {[%clk 0:02:44.4]} 9. g4 {[%clk 0:03:01.5]} 9... Bb7 {[%clk 0:02:44.1]}
10. Nc3 {[%clk 0:02:58.4]} 10... a6 {[%clk 0:02:40.7]} 11. Qe1 {[%clk 0:02:57]}
11... b5 {[%clk 0:02:39.3]} 12. g5 {[%clk 0:02:50.8]} 12... Nh5 {[%clk
0:02:37.5]} 13. Qh4 {[%clk 0:02:50.3]} 13... g6 {[%clk 0:02:37.5]} 14. Ne2
{[%clk 0:02:38.8]} 14... Nb4 {[%clk 0:02:28.9]} 15. Ne1 {[%clk 0:02:38.8]} 15...
f6 {[%clk 0:02:24.1]} 16. gxf6 {[%clk 0:02:31]} 16... Bxf6 {[%clk 0:02:25]} 17.
Qg4 {[%clk 0:02:30.9]} 17... Qe8 {[%clk 0:02:01.9]} 18. c3 {[%clk 0:02:29.8]}
18... Nc6 {[%clk 0:01:55.3]} 19. Nf3 {[%clk 0:02:28.8]} 19... Bc8 {[%clk
0:01:47.7]} 20. Ng5 {[%clk 0:02:25.3]} 20... Bxg5 {[%clk 0:01:35.5]} 21. Qxg5
{[%clk 0:02:15.9]} 21... Bd7 {[%clk 0:01:23.1]} 22. Be3 {[%clk 0:02:13.2]} 22...
Qe7 {[%clk 0:01:18.1]} 23. Qf6 {[%clk 0:02:10.3]} 23... Qxf6 {[%clk 0:01:17.2]}
24. Kh2 {[%clk 0:02:05.9]} 0-1

[Event "Early-Titled-Tuesday-Blitz-May-07-2024"]
[Site "Chess.com"]
[Date "2024.05.07"]
[Round "10"]
[White "Legendinunknown"]
[Black "Baku_Boulevard"]
[Result "0-1"]
[WhiteElo "2827"]
[BlackElo "3014"]
[TimeControl "180+1"]
[EndTime "9:59:15 PDT"]
[Termination "Baku_Boulevard won by checkmate"]

1. d4 {[%clk 0:02:56.5]} 1... d6 {[%clk 0:02:58.7]} 2. c4 {[%clk 0:02:51.2]}
2... e5 {[%clk 0:02:58.5]} 3. Nf3 {[%clk 0:02:44.5]} 3... e4 {[%clk 0:02:58.7]}
4. Nfd2 {[%clk 0:02:44.9]} 4... f5 {[%clk 0:02:58.2]} 5. e3 {[%clk 0:02:45.6]}
5... Nf6 {[%clk 0:02:58.4]} 6. Nc3 {[%clk 0:02:46.2]} 6... g6 {[%clk 0:02:58.6]}
7. b4 {[%clk 0:02:46.6]} 7... Bg7 {[%clk 0:02:58.9]} 8. Qb3 {[%clk 0:02:47.3]}
8... O-O {[%clk 0:02:59.1]} 9. Be2 {[%clk 0:02:47.8]} 9... Nc6 {[%clk
0:02:59.5]} 10. a4 {[%clk 0:02:47.9]} 10... Kh8 {[%clk 0:02:55.6]} 11. Ba3
{[%clk 0:02:47.6]} 11... f4 {[%clk 0:02:47.3]} 12. b5 {[%clk 0:02:36.3]} 12...
fxe3 {[%clk 0:02:43.5]} 13. fxe3 {[%clk 0:02:35.1]} 13... Na5 {[%clk 0:02:43.6]}
14. Qc2 {[%clk 0:02:28.8]} 14... Ng4 {[%clk 0:02:37.6]} 15. Bxg4 {[%clk
0:02:26.2]} 15... Bxg4 {[%clk 0:02:37.2]} 16. Ncxe4 {[%clk 0:02:03.1]} 16...
Qh4+ {[%clk 0:02:30.4]} 17. Ng3 {[%clk 0:01:46.7]} 17... Rae8 {[%clk 0:02:25.5]}
18. Qc3 {[%clk 0:01:37.6]} 18... c5 {[%clk 0:02:18.6]} 19. bxc6 {[%clk
0:01:18.7]} 19... Nxc6 {[%clk 0:02:17.6]} 20. Ne4 {[%clk 0:01:17.9]} 20... Rxe4
{[%clk 0:02:15.6]} 21. Bxd6 {[%clk 0:01:12.1]} 21... Bxd4 {[%clk 0:02:05.8]} 22.
Qd3 {[%clk 0:01:11.6]} 22... Rxe3+ {[%clk 0:02:04.6]} 23. Qxe3 {[%clk 0:01:11]}
23... Bxe3 {[%clk 0:02:05.3]} 24. Bxf8 {[%clk 0:01:11.7]} 24... Qf6 {[%clk
0:02:05.7]} 25. Ra3 {[%clk 0:01:10.6]} 25... Qf2# {[%clk 0:02:05]} 0-1